[Event "German Bundesliga 2024-25"]
[Site "Germany"]
[Date "2025.01.12"]
[Round "6.15"]
[White "Boensch, Uwe"]
[Black "Girel, Joseph"]
[Result "1-0"]
[Annotator "TA"]
[ECO "E12"]
[WhiteElo "2464"]
[BlackElo "2486"]
[PlyCount "67"]
[EventDate "2024.09.27"]
[EventType "team-tourn"]
[EventCountry "GER"]
[SourceTitle "playchess.com"]
[Source "ChessBase"]
[SourceQuality "1"]
[WhiteTeam "TU Dresden"]
[BlackTeam "Bayern Muenchen"]
[TimeControl "40/5400+30:1800+30"]

{[%evp 11,67,25,19,24,59,15,31,19,11,6,25,9,23,16,20,5,0,0,7,0,0,0,0,0,33,29,30,30,28,41,59,63,134,112,116,122,129,102,106,110,101,83,83,74,101,111,119,88,127,83,964,610,1461,1384,1323,1428,1386,1325]} 1. d4 {[%emt 0:00:04]} Nf6 {[%emt 0:00:30]} 2. c4 {[%emt 0:00:06]} e6 {[%emt 0:00:09]} 3. Nf3 {[%emt 0:00:11]} b6 {[%emt 0:00:26]} 4. a3 {[%emt 0:00:06]} Bb7 {[%emt 0:00:41]} 5. Nc3 {[%emt 0:00:07]} Ne4 {[%emt 0:00:22]} 6. Nxe4 {[%emt 0:00:12]} Bxe4 {[%emt 0:00:07]} 7. Nd2 {[%emt 0:00:37]} Bg6 {[%emt 0:00:08]} 8. e3 {[%emt 0:04:29]} Be7 {[%emt 0:04:56]} 9. Be2 {[%emt 0:00:34]} O-O {[%emt 0:04:19]} 10. O-O {[%emt 0:00:13]} d5 {[%emt 0:08:21]} 11. b4 {[%emt 0:16:43]} c6 {[%emt 0:04:03]} 12. Bb2 {[%emt 0:01:05]} Nd7 {[%emt 0:05:09]} 13. cxd5 {[%emt 0:10:37]} cxd5 {[%emt 0:07:23]} 14. Ba6 {[%emt 0:12:07]} Bd6 {[%emt 0:00:24]} 15. Qe2 {[%emt 0:05:19]} Qe7 {[%emt 0:00:43]} 16. Rfc1 {[%emt 0:07:05]} Nb8 {[%emt 0:05:38]} 17. Bd3 {[%emt 0:00:12]} a5 {[%emt 0:01:28]} 18. b5 {[%emt 0:05:18]} a4 {[%emt 0:08:52]} 19. Bxg6 {[%emt 0:04:30]} hxg6 {[%emt 0:00:19]} 20. e4 {[%emt 0:00:27]} dxe4 {[%emt 0:04:53]} 21. Nxe4 {[%emt 0:00:35]} Bf4 {[%emt 0:00:56] Repels h4} (21... Ra7 $14) 22. Rc2 {[%emt 0:03:46]} Ra7 {[%emt 0:06:09]} 23. g3 {[%emt 0:01:34]} Bd6 {[%emt 0:01:26]} 24. d5 {[%emt 0:03:17]} exd5 {[%emt 0:02:25]} 25. Nxd6 {[%emt 0:00:32]} Qxd6 {[%emt 0:00:05]} 26. Rd1 {[%emt 0:00:30] Black is weak on the dark squares} Qe6 {[%emt 0:04:51]} 27. Qd2 {[%emt 0:04:15]} Rd8 {[%emt 0:02:12]} 28. Re1 {[%emt 0:00:31] Inhibits d4.} Qg4 {[%emt 0:03:44] [#]} 29. h3 $1 $40 {[%emt 0:07:11][%mdl 640] White goes for the king.} Qxh3 {[%emt 0:01:56][%cal Od5d4]} (29... Qd7 30. Bd4) 30. Qd4 {[%emt 0:00:01][%csl Gb2,LRb6,LRg7][%cal Rd4g7] Active counter play!} Qh6 $2 {[%emt 0:00:19][%mdl 8192]} (30... f6 $16) 31. Rce2 {[%emt 0:03:56] and Re8+ should not be overlooked} Rad7 {[%emt 0:13:01]} 32. Re8+ {[%emt 0:00:54]} Kh7 {[%emt 0:00:11]} 33. Rxd8 {[%emt 0:00:54]} Rxd8 {[%emt 0:00:07]} 34. Kg2 {[%emt 0:00:03]} ({Not} 34. Qxa4 Nd7 $18) (34. Qxb6 Qd2 35. Kf1 Rc8 $18) 1-0

[Event "German Bundesliga 2024-25"]
[Site "Germany"]
[Date "2025.01.12"]
[Round "6.16"]
[White "Bologan, Victor"]
[Black "Krause, Benedict"]
[Result "1/2-1/2"]
[Annotator "TA"]
[ECO "B45"]
[WhiteElo "2600"]
[BlackElo "2414"]
[PlyCount "107"]
[EventDate "2024.09.27"]
[EventType "team-tourn"]
[EventCountry "GER"]
[SourceTitle "playchess.com"]
[Source "ChessBase"]
[SourceQuality "1"]
[WhiteTeam "Duesseldorf"]
[BlackTeam "St. Pauli"]
[TimeControl "40/5400+30:1800+30"]

{[%evp 22,107,32,20,24,9,31,36,30,32,43,44,41,44,44,50,43,39,39,39,48,48,59,60,56,52,50,49,46,52,52,42,50,51,51,44,66,59,61,63,63,52,53,49,41,41,57,57,95,95,95,86,86,86,86,86,136,136,136,136,136,136,136,136,136,136,136,136,136,136,136,136,136,136,136,136,136,136,136,136,136,136,136,136,136,136,136,0]} 1. e4 {[%emt 0:00:02]} c5 {[%emt 0:00:07]} 2. Nf3 {[%emt 0:00:03][%cal Bg1f3,Bf3d4,Bd4b5][%mdl 32]} e6 {[%emt 0:00:07]} 3. d4 {[%emt 0:00:03]} cxd4 {[%emt 0:00:08]} 4. Nxd4 {[%emt 0:00:04]} Nf6 {[%emt 0:00:09]} 5. Nc3 {[%emt 0:00:03]} Nc6 {[%emt 0:00:06]} 6. Ndb5 {[%emt 0:00:27]} Bb4 {[%emt 0:00:10]} 7. a3 {[%emt 0:01:30]} Bxc3+ {[%emt 0:00:06]} 8. Nxc3 {[%emt 0:00:03]} d5 {[%emt 0:00:08]} 9. Bd3 {[%emt 0:00:31]} dxe4 {[%emt 0:00:36]} 10. Nxe4 {[%emt 0:00:05]} Nxe4 {[%emt 0:00:05]} 11. Bxe4 {[%emt 0:00:05]} Qxd1+ {[%emt 0:00:08]} 12. Kxd1 {[%emt 0:00:02]} e5 {[%emt 0:00:19]} 13. Bd2 {[%emt 0:04:42]} Be6 {[%emt 0:05:12]} 14. Re1 {[%emt 0:13:27]} f6 {[%emt 0:11:59]} 15. f4 {[%emt 0:05:30]} O-O-O {[%emt 0:05:03]} 16. Bxc6 {[%emt 0:01:31]} bxc6 {[%emt 0:00:12]} 17. fxe5 {[%emt 0:00:05]} fxe5 {[%emt 0:00:31]} 18. Kc1 {[%emt 0:00:24]} Rd5 {[%emt 0:17:49]} 19. b3 {[%emt 0:02:46]} Rf8 {[%emt 0:12:59]} 20. Be3 {[%emt 0:00:21] Inhibits Rf2.} Kb7 {[%emt 0:01:55]} 21. Kb2 {[%emt 0:00:16]} Rf7 {[%emt 0:06:55]} 22. h3 {[%emt 0:04:16]} Bf5 {[%emt 0:02:51]} 23. Re2 {[%emt 0:06:10]} Bg6 {[%emt 0:03:25]} 24. a4 {[%emt 0:05:31]} a5 {[%emt 0:02:21]} 25. Bd2 {[%emt 0:11:20]} Kb6 {[%emt 0:02:15]} 26. Rg1 {[%emt 0:10:18]} h5 {[%emt 0:09:13]} 27. Be3+ {[%emt 0:07:45]} Kb7 {[%emt 0:00:27]} 28. Ree1 {[%emt 0:00:40]} e4 {[%emt 0:05:11]} 29. Ref1 {[%emt 0:02:21]} Rxf1 {[%emt 0:01:21]} 30. Rxf1 $14 {[%emt 0:00:06][%mdl 4096] Endgame KRB-KRB} Rf5 {[%emt 0:03:26]} 31. Rd1 {[%emt 0:01:29] White is more active.} Rd5 {[%emt 0:01:30]} 32. Rxd5 {[%emt 0:03:23]} cxd5 {[%emt 0:00:12] KB-KB} 33. Kc3 {[%emt 0:00:06]} h4 {[%emt 0:03:24]} 34. Kd2 {[%emt 0:02:18]} d4 {[%emt 0:03:55]} 35. Bxd4 {[%emt 0:02:55][%cal Od2e3] aiming for Ke3!.} e3+ {[%emt 0:00:05]} 36. Kxe3 {[%emt 0:01:06]} Bxc2 {[%emt 0:00:04]} 37. Bxg7 {[%emt 0:00:06]} Bxb3 {[%emt 0:00:18]} 38. Bf6 {[%emt 0:00:04]} Kc6 {[%emt 0:01:46]} ({Better is} 38... Bxa4 39. Bxh4 Bc6) 39. Bxh4 $16 {[%emt 0:00:11]} Kd5 {[%emt 0:00:40]} 40. Kf4 {[%emt 0:00:14]} Ke6 {[%emt 0:00:20]} 41. g4 {[%emt 0:34:05]} Kf7 {[%emt 0:32:58]} 42. Kg5 {[%emt 0:04:17]} Kg7 {[%emt 0:00:00]} 43. Be1 {[%emt 0:00:00]} Bxa4 {[%emt 0:00:00]} 44. Bxa5 {[%emt 0:00:00]} Bd7 {[%emt 0:00:00]} 45. Bc3+ {[%emt 0:00:00]} Kh7 {[%emt 0:00:00]} 46. h4 {[%emt 0:00:00][%cal Bh3h4,Bh4h5][%mdl 32]} Bc8 {[%emt 0:00:00]} 47. h5 {[%emt 0:00:00]} Bd7 {[%emt 0:00:00]} 48. Kf4 {[%emt 0:00:00]} Bb5 {[%emt 0:00:00]} 49. Kf5 {[%emt 0:00:00]} Be2 {[%emt 0:00:00]} 50. Kg5 {[%emt 0:00:00]} Bd1 {[%emt 0:00:00]} 51. Kh4 {[%emt 0:00:00]} Ba4 {[%emt 0:00:00]} 52. g5 {[%emt 0:00:00] White threatens g6+ and mate.} Be8 {[%emt 0:00:00]} 53. Kg4 {[%emt 0:00:00]} Bf7 {[%emt 0:00:00]} 54. Kh4 {[%emt 0:00:00]} (54. Be5 $16) 1/2-1/2

[Event "German Bundesliga 2024-25"]
[Site "Germany"]
[Date "2025.01.12"]
[Round "6.16"]
[White "Bischoff, Klaus"]
[Black "Tischbierek, Raj"]
[Result "1/2-1/2"]
[Annotator "TA"]
[ECO "D16"]
[WhiteElo "2433"]
[BlackElo "2432"]
[PlyCount "41"]
[EventDate "2024.09.27"]
[EventType "team-tourn"]
[EventCountry "GER"]
[SourceTitle "playchess.com"]
[Source "ChessBase"]
[SourceQuality "1"]
[WhiteTeam "Bayern Muenchen"]
[BlackTeam "TU Dresden"]
[TimeControl "40/5400+30:1800+30"]

{[%evp 18,41,32,50,41,-105,-102,-235,-193,-174,-193,-204,-138,-137,-144,-127,-74,-61,13,14,55,0,68,67,92,74]} 1. d4 {[%emt 0:00:09]} d5 {[%emt 0:00:15]} 2. c4 {[%emt 0:00:32]} c6 {[%emt 0:00:09]} 3. Nf3 {[%emt 0:00:29]} Nf6 {[%emt 0:00:16]} 4. Nc3 {[%emt 0:00:24]} dxc4 {[%emt 0:01:08]} 5. a4 {[%emt 0:00:22]} Bg4 {[%emt 0:00:16]} 6. Ne5 {[%emt 0:05:29]} Bh5 {[%emt 0:00:22]} 7. f3 {[%emt 0:03:41]} Nfd7 {[%emt 0:00:30]} 8. Nxc4 {[%emt 0:02:13]} e5 {[%emt 0:00:08]} 9. e4 {[%emt 0:03:31]} Qh4+ {[%emt 0:04:56]} 10. g3 {[%emt 0:04:40]} Qf6 $1 {[%emt 0:00:39][%csl LRd4,LRf3]} 11. g4 {[%emt 0:02:31]} (11. dxe5 $1 $14 Qxf3 12. Nd6+ Ke7 (12... Bxd6 13. Qxd6 Qxh1 14. Bg5 $16) 13. Bg5+ (13. Nxb7 Qxd1+ 14. Nxd1 Bf3 $15) 13... f6 14. exf6+ gxf6 15. Bf4 (15. Qxf3 $2 Bxf3 16. Bf4 Bxh1 $19)) 11... exd4 $17 {[%emt 0:03:11]} 12. Nb1 {[%emt 0:14:46]} (12. gxh5 $17 {was called for.} dxc3 13. bxc3) 12... Qh4+ {[%emt 0:38:09]} 13. Ke2 {[%emt 0:02:05]} Bg6 {[%emt 0:01:15]} 14. Bf4 {[%emt 0:03:15][%cal Of4g3]} h5 {[%emt 0:07:40][%cal Og6e4]} 15. Bg3 {[%emt 0:01:06]} Qf6 {[%emt 0:00:35] White must now prevent ...hxg4.} 16. g5 {[%emt 0:01:14]} Qxg5 {[%emt 0:04:33]} (16... Qe6 17. Qxd4 Bc5) 17. Qxd4 {[%emt 0:01:04]} Qf6 {[%emt 0:03:49]} (17... h4 $15 18. Bd6 Nc5) 18. Qxf6 $11 {[%emt 0:04:03]} Nxf6 {[%emt 0:00:09]} 19. Bh3 {[%emt 0:01:35]} (19. Nd6+ $14 Bxd6 20. Bxd6) 19... Nbd7 {[%emt 0:06:47]} ({Black should play} 19... Na6 $11) 20. Nd6+ $14 {[%emt 0:04:37]} Bxd6 {[%emt 0:00:29]} 21. Bxd6 {[%emt 0:00:12]} 1/2-1/2